[Event "POL-chT 2 Liga 2019"]
[Site "Poronin"]
[Date "2019.09.10"]
[Round "4.22"]
[White "Butyrowski, Marcel"]
[Black "Szczepanek, Radoslaw"]
[Result "0-1"]
[ECO "E63"]
[WhiteElo "1873"]
[BlackElo "2195"]
[Annotator "NA"]
[PlyCount "86"]
[EventDate "2019.09.07"]
[EventType "team-tourn"]
[EventCountry "POL"]
[SourceTitle "playchess.com"]
[Source "ChessBase"]
[SourceQuality "1"]
[TimeControl "40/5400+30:1800+30"]

1. d4 {[%emt 0:00:00]} Nf6 {[%emt 0:00:00]} 2. c4 {[%emt 0:00:00]} g6 {[%emt 0:00:00]} 3. g3 {[%emt 0:00:00]} Bg7 {[%emt 0:00:00]} 4. Bg2 {[%emt 0:00:00]} O-O {[%emt 0:00:04]} 5. Nc3 {[%emt 0:00:05]} d6 {[%emt 0:00:22]} 6. Nf3 {[%emt 0:00:05]} Nc6 {[%emt 0:01:08]} 7. O-O {[%emt 0:00:20]} a6 {[%emt 0:00:32]} 8. d5 {[%emt 0:01:28]} Na5 {[%emt 0:00:26]} 9. Nd2 {[%emt 0:01:04]} c5 {[%emt 0:00:16]} 10. e4 {[%emt 0:02:12]} Rb8 {[%emt 0:02:41]} 11. Qe2 {[%emt 0:01:33]} b5 {[%emt 0:19:45]} 12. h3 {[%emt 0:03:29]} Nd7 {[%emt 0:05:48]} 13. f4 {[%emt 0:02:13]} Nxc4 {[%emt 0:04:32]} 14. Nxc4 {[%emt 0:01:30]} bxc4 {[%emt 0:00:05]} 15. Be3 {[%emt 0:02:01]} Qa5 {[%emt 0:08:35]} 16. Rab1 {[%emt 0:03:42]} Nb6 {[%emt 0:08:39]} 17. Bd2 {[%emt 0:04:56]} Bd7 {[%emt 0:06:57]} 18. g4 {[%emt 0:07:18]} Bd4+ {[%emt 0:04:36]} 19. Kh1 {[%emt 0:02:22]} Na4 {[%emt 0:00:56]} 20. Nxa4 {[%emt 0:03:27]} Qxa4 {[%emt 0:00:08]} 21. Bc3 {[%emt 0:00:19]} Qxa2 {[%emt 0:03:16]} 22. Ra1 {[%emt 0:02:35]} Qb3 {[%emt 0:00:06]} 23. Ra3 {[%emt 0:00:24]} Qb6 {[%emt 0:01:48]} 24. g5 {[%emt 0:10:12]} Bxc3 {[%emt 0:06:38]} 25. bxc3 {[%emt 0:01:26]} a5 {[%emt 0:02:41]} 26. Ra2 {[%emt 0:07:01]} f6 {[%emt 0:04:04]} 27. f5 {[%emt 0:04:49]} Kg7 {[%emt 0:04:18]} 28. Qe3 {[%emt 0:03:41]} fxg5 {[%emt 0:03:21]} 29. Qxg5 {[%emt 0:01:15]} Rf6 {[%emt 0:00:17]} 30. Raf2 {[%emt 0:06:50]} Rbf8 {[%emt 0:00:08]} 31. Qh4 {[%emt 0:02:54]} a4 {[%emt 0:01:34]} 32. Bf3 {[%emt 0:03:33]} Qb3 {[%emt 0:00:39]} 33. Rg2 {[%emt 0:01:16]} Qxc3 {[%emt 0:01:24]} 34. Bh5 {[%emt 0:01:48]} Be8 {[%emt 0:01:59]} 35. Rfg1 {[%emt 0:01:01]} a3 {[%emt 0:01:28]} 36. Rg3 {[%emt 0:04:33]} Qb2 {[%emt 0:00:35]} 37. e5 {[%emt 0:09:40]} Qxe5 {[%emt 0:00:52]} 38. Rxa3 {[%emt 0:01:17]} Rxf5 {[%emt 0:01:40]} 39. Bg4 {[%emt 0:00:29]} Qxd5+ {[%emt 0:00:40]} 40. Rg2 {[%emt 0:00:00]} Bc6 {[%emt 0:00:00]} 41. Raa2 {[%emt 0:02:20]} Rf1+ {[%emt 0:00:27]} 42. Kh2 {[%emt 0:00:14]} Qe5+ {[%emt 0:00:10]} 43. Qg3 {[%emt 0:00:36]} Rh1+ {[%emt 0:00:11]} 0-1

[Event "POL-chT 2 Liga 2019"]
[Site "Poronin"]
[Date "2019.09.10"]
[Round "4.23"]
[White "Malinowski, Damian"]
[Black "Wojdak, Jan"]
[Result "1/2-1/2"]
[ECO "A13"]
[WhiteElo "2038"]
[BlackElo "1973"]
[Annotator "NA"]
[PlyCount "79"]
[EventDate "2019.09.07"]
[EventType "team-tourn"]
[EventCountry "POL"]
[SourceTitle "playchess.com"]
[Source "ChessBase"]
[SourceQuality "1"]
[TimeControl "40/5400+30:1800+30"]

1. c4 {[%emt 0:00:00]} e6 {[%emt 0:00:00]} 2. Nf3 {[%emt 0:00:00]} d5 {[%emt 0:00:00]} 3. g3 {[%emt 0:00:00]} c6 {[%emt 0:00:15]} 4. Bg2 {[%emt 0:00:04]} Nf6 {[%emt 0:04:09]} 5. O-O {[%emt 0:00:14]} Bd6 {[%emt 0:06:33]} 6. d4 {[%emt 0:00:26]} Nbd7 {[%emt 0:00:34]} 7. b3 {[%emt 0:01:52]} O-O {[%emt 0:01:55]} 8. Bb2 {[%emt 0:01:01]} b6 {[%emt 0:06:45]} 9. Nbd2 {[%emt 0:03:51]} Bb7 {[%emt 0:01:28]} 10. Rc1 {[%emt 0:06:18]} c5 {[%emt 0:01:15]} 11. Re1 {[%emt 0:07:45]} Rc8 {[%emt 0:27:32]} 12. Rc2 {[%emt 0:11:12]} cxd4 {[%emt 0:08:46]} 13. Nxd4 {[%emt 0:02:07]} Bc5 {[%emt 0:01:16]} 14. Qa1 {[%emt 0:08:40]} e5 {[%emt 0:09:50]} 15. Nb5 {[%emt 0:09:59]} a6 {[%emt 0:04:37]} 16. Nc3 {[%emt 0:00:57]} b5 {[%emt 0:03:36]} 17. e3 {[%emt 0:03:38]} bxc4 {[%emt 0:01:42]} 18. bxc4 {[%emt 0:01:02]} Bb4 {[%emt 0:04:50]} 19. Rec1 {[%emt 0:09:43]} Re8 {[%emt 0:01:57]} 20. Nxd5 {[%emt 0:04:14]} Nxd5 {[%emt 0:00:58]} 21. Bxd5 {[%emt 0:03:43]} Bxd5 {[%emt 0:00:15]} 22. cxd5 {[%emt 0:00:08]} Rxc2 {[%emt 0:00:19]} 23. Rxc2 {[%emt 0:00:11]} Qa5 {[%emt 0:00:55]} 24. Bc3 {[%emt 0:05:26]} Bxc3 {[%emt 0:00:28]} 25. Qxc3 {[%emt 0:00:10]} Qxd5 {[%emt 0:00:05]} 26. Qc6 {[%emt 0:00:54]} Qd3 {[%emt 0:06:28]} 27. Qc4 {[%emt 0:02:18]} Qxc4 {[%emt 0:04:03]} 28. Rxc4 {[%emt 0:00:14]} Kf8 {[%emt 0:01:54]} 29. Rc6 {[%emt 0:03:23]} Ra8 {[%emt 0:00:40]} 30. Kf1 {[%emt 0:01:53]} Ke7 {[%emt 0:00:09]} 31. Ke2 {[%emt 0:01:24]} Ra7 {[%emt 0:00:30]} 32. f3 {[%emt 0:01:36]} f6 33. h4 {[%emt 0:01:20]} Ra8 {[%emt 0:01:57]} 34. Nc4 {[%emt 0:01:55]} Ra7 {[%emt 0:00:26]} 35. g4 {[%emt 0:04:13]} Nb8 {[%emt 0:00:36]} 36. Rb6 {[%emt 0:00:56]} Nd7 {[%emt 0:00:09]} 37. Rc6 {[%emt 0:01:02]} Nb8 {[%emt 0:00:04]} 38. Rb6 {[%emt 0:00:49]} Nd7 {[%emt 0:00:05]} 39. Rc6 {[%emt 0:00:33]} Nb8 {[%emt 0:01:22]} 40. Rb6 {[%emt 0:00:00]} 1/2-1/2

[Event "POL-chT 2 Liga 2019"]
[Site "Poronin"]
[Date "2019.09.10"]
[Round "4.24"]
[White "Szelag, Zuzanna"]
[Black "Suchanek, Paulina"]
[Result "1-0"]
[ECO "C10"]
[WhiteElo "1824"]
[BlackElo "1574"]
[Annotator "NA"]
[PlyCount "95"]
[EventDate "2019.09.07"]
[EventType "team-tourn"]
[EventCountry "POL"]
[SourceTitle "playchess.com"]
[Source "ChessBase"]
[SourceQuality "1"]
[TimeControl "40/5400+30:1800+30"]

1. e4 {[%emt 0:00:00]} e6 {[%emt 0:00:00]} 2. d4 {[%emt 0:00:00]} d5 {[%emt 0:00:00]} 3. Nd2 {[%emt 0:00:00]} dxe4 {[%emt 0:00:00]} 4. Nxe4 {[%emt 0:00:00]} Nd7 {[%emt 0:00:11]} 5. Bd3 {[%emt 0:00:00]} Ngf6 {[%emt 0:01:57]} 6. Qe2 {[%emt 0:00:00]} Be7 {[%emt 0:03:39]} 7. Nf3 {[%emt 0:00:06]} O-O {[%emt 0:03:48]} 8. Bg5 {[%emt 0:00:53]} h6 {[%emt 0:05:36]} 9. Bh4 {[%emt 0:04:04]} Nxe4 {[%emt 0:01:47]} 10. Qxe4 {[%emt 0:01:42]} g6 {[%emt 0:00:14]} 11. Bg3 {[%emt 0:03:02]} Kg7 {[%emt 0:05:49]} 12. h4 {[%emt 0:09:53]} Nf6 {[%emt 0:05:54]} 13. Be5 {[%emt 0:04:20]} Bd6 {[%emt 0:10:44]} 14. Qf4 {[%emt 0:09:56]} Bxe5 {[%emt 0:11:45]} 15. dxe5 {[%emt 0:01:57]} Nd5 {[%emt 0:01:14]} 16. Qe4 {[%emt 0:04:30]} Qe7 {[%emt 0:06:21]} 17. a3 {[%emt 0:07:56]} Rh8 {[%emt 0:05:13]} 18. Nd4 {[%emt 0:12:43]} a6 {[%emt 0:06:45]} 19. c4 {[%emt 0:10:44]} Nb6 {[%emt 0:01:03]} 20. Kf1 {[%emt 0:00:45]} Nd7 {[%emt 0:08:00]} 21. Nb3 {[%emt 0:03:11]} a5 {[%emt 0:01:48]} 22. a4 {[%emt 0:02:25]} Nc5 {[%emt 0:04:23]} 23. Nxc5 {[%emt 0:00:07]} Qxc5 24. Rh3 {[%emt 0:02:32]} Kf8 {[%emt 0:06:41]} 25. Rf3 {[%emt 0:03:49]} Ke8 {[%emt 0:01:27]} 26. Qf4 {[%emt 0:02:43]} Qe7 {[%emt 0:00:15]} 27. Qg4 {[%emt 0:01:43]} h5 {[%emt 0:02:20]} 28. Qg3 {[%emt 0:02:10]} Rg8 {[%emt 0:01:23]} 29. Rd1 {[%emt 0:01:57]} Bd7 {[%emt 0:00:28]} 30. Bc2 {[%emt 0:00:58]} Bc6 {[%emt 0:01:04]} 31. Rfd3 {[%emt 0:00:41]} Qc5 {[%emt 0:04:07]} 32. Qf4 {[%emt 0:01:23]} Qe7 {[%emt 0:00:54]} 33. Rd4 {[%emt 0:00:46]} g5 {[%emt 0:00:35]} 34. Qe3 {[%emt 0:01:46]} gxh4 {[%emt 0:00:17]} 35. Be4 {[%emt 0:00:10]} Bxe4 {[%emt 0:00:14]} 36. Qxe4 {[%emt 0:00:33]} c6 {[%emt 0:00:59]} 37. Rd7 {[%emt 0:02:23]} Qg5 {[%emt 0:00:42]} 38. Rxb7 {[%emt 0:03:19]} Rc8 {[%emt 0:00:17]} 39. Qf3 {[%emt 0:01:16]} Qf5 {[%emt 0:00:35]} 40. Qxf5 {[%emt 0:00:00]} exf5 {[%emt 0:00:00]} 41. Rdd7 {[%emt 0:04:05]} Rg4 {[%emt 0:26:33]} 42. Rxf7 {[%emt 0:02:33]} Rb8 {[%emt 0:00:28]} 43. Ra7 {[%emt 0:05:45]} Rxb2 {[%emt 0:00:30]} 44. Rh7 {[%emt 0:02:39]} Rb1+ {[%emt 0:01:48]} 45. Ke2 {[%emt 0:00:05]} Re4+ {[%emt 0:04:00]} 46. Kd2 {[%emt 0:00:44]} Rd4+ 47. Kc3 {[%emt 0:00:30]} Rbd1 {[%emt 0:01:07]} 48. Rh8# 1-0

[Event "POL-chT 2 Liga 2019"]
[Site "Poronin"]
[Date "2019.09.10"]
[Round "4.26"]
[White "Stachowiak, Kamil"]
[Black "Pyda, Zbigniew"]
[Result "1-0"]
[ECO "D31"]
[WhiteElo "2444"]
[BlackElo "2322"]
[Annotator "NA"]
[PlyCount "81"]
[EventDate "2019.09.07"]
[EventType "team-tourn"]
[EventCountry "POL"]
[SourceTitle "playchess.com"]
[Source "ChessBase"]
[SourceQuality "1"]
[TimeControl "40/5400+30:1800+30"]

1. d4 {[%emt 0:00:00]} d5 {[%emt 0:00:00]} 2. c4 {[%emt 0:00:00]} e6 {[%emt 0:00:00]} 3. Nc3 {[%emt 0:00:04]} Be7 {[%emt 0:00:01]} 4. cxd5 {[%emt 0:01:05]} exd5 {[%emt 0:00:09]} 5. Bf4 {[%emt 0:00:12]} c6 {[%emt 0:00:44]} 6. e3 {[%emt 0:00:18]} Bf5 {[%emt 0:01:03]} 7. g4 {[%emt 0:01:17]} Bg6 {[%emt 0:01:17]} 8. h4 {[%emt 0:00:52]} h5 {[%emt 0:00:39]} 9. g5 {[%emt 0:00:12]} Bd6 {[%emt 0:07:01]} 10. Nge2 {[%emt 0:10:27]} Ne7 {[%emt 0:03:51]} 11. Qb3 {[%emt 0:10:57]} b6 {[%emt 0:15:45]} 12. Bxd6 {[%emt 0:04:09]} Qxd6 {[%emt 0:00:40]} 13. Nf4 {[%emt 0:00:10]} Bf5 {[%emt 0:04:07]} 14. Bd3 {[%emt 0:00:22]} Nd7 {[%emt 0:01:51]} 15. O-O-O {[%emt 0:02:41]} g6 {[%emt 0:08:52]} 16. Kb1 {[%emt 0:10:04]} O-O {[%emt 0:01:01]} 17. Bxf5 {[%emt 0:09:39]} Nxf5 {[%emt 0:00:13]} 18. Qc2 {[%emt 0:00:10]} Ne7 {[%emt 0:04:23]} 19. Qd2 {[%emt 0:03:34]} b5 {[%emt 0:04:48]} 20. f3 {[%emt 0:11:22]} Nb6 {[%emt 0:05:38]} 21. e4 {[%emt 0:03:44]} Nc4 {[%emt 0:05:44]} 22. Qc1 {[%emt 0:00:07]} Rab8 {[%emt 0:02:59]} 23. Nd3 {[%emt 0:05:56]} b4 {[%emt 0:04:08]} 24. Na4 {[%emt 0:01:06]} b3 {[%emt 0:00:25]} 25. a3 {[%emt 0:01:28]} Rfd8 {[%emt 0:09:58]} 26. Nac5 {[%emt 0:03:08]} Qg3 {[%emt 0:08:16]} 27. Qf4 {[%emt 0:05:03]} Qxf4 {[%emt 0:00:44]} 28. Nxf4 {[%emt 0:00:06]} dxe4 {[%emt 0:01:24]} 29. fxe4 {[%emt 0:00:55]} Rd6 {[%emt 0:06:15]} 30. Rd3 {[%emt 0:08:01]} Na5 {[%emt 0:00:20]} 31. Rhd1 {[%emt 0:02:08]} Rb5 {[%emt 0:01:13]} 32. Rc1 {[%emt 0:05:58]} Rd8 {[%emt 0:01:29]} 33. d5 {[%emt 0:00:41]} cxd5 {[%emt 0:00:21]} 34. Nxd5 {[%emt 0:00:32]} Nxd5 {[%emt 0:00:33]} 35. Rxd5 {[%emt 0:00:11]} Rxd5 {[%emt 0:00:57]} 36. exd5 {[%emt 0:00:01]} Nb7 {[%emt 0:00:09]} 37. Ne4 {[%emt 0:00:04]} Kg7 {[%emt 0:00:57]} 38. Nf6 {[%emt 0:01:04]} Nd6 {[%emt 0:00:32]} 39. Rc6 {[%emt 0:01:06]} Rb6 {[%emt 0:00:26]} 40. Rxd6 {[%emt 0:00:00]} Rb5 41. Rc6 1-0

[Event "POL-chT 2 Liga 2019"]
[Site "Poronin"]
[Date "2019.09.10"]
[Round "4.27"]
[White "Polkowski, Piotr"]
[Black "Piotrowski, Przemyslaw"]
[Result "0-1"]
[ECO "B24"]
[WhiteElo "2109"]
[BlackElo "2293"]
[Annotator "NA"]
[PlyCount "72"]
[EventDate "2019.09.07"]
[EventType "team-tourn"]
[EventCountry "POL"]
[SourceTitle "playchess.com"]
[Source "ChessBase"]
[SourceQuality "1"]
[TimeControl "40/5400+30:1800+30"]

1. e4 {[%emt 0:00:00]} c5 {[%emt 0:00:20]} 2. Nc3 {[%emt 0:00:35]} Nc6 {[%emt 0:00:37]} 3. Bb5 {[%emt 0:01:32]} e5 {[%emt 0:01:17]} 4. d3 {[%emt 0:01:44]} g6 {[%emt 0:02:42]} 5. Nf3 {[%emt 0:10:18]} Bg7 {[%emt 0:02:11]} 6. h3 {[%emt 0:03:07]} Nge7 {[%emt 0:02:46]} 7. O-O {[%emt 0:00:28]} d6 {[%emt 0:00:42]} 8. Bc4 {[%emt 0:14:52]} O-O {[%emt 0:09:34]} 9. a4 {[%emt 0:00:02]} h6 {[%emt 0:02:10]} 10. Nh2 {[%emt 0:17:25]} Kh7 {[%emt 0:05:12]} 11. f4 {[%emt 0:01:35]} f5 {[%emt 0:00:16]} 12. fxe5 {[%emt 0:02:42]} Nxe5 {[%emt 0:02:27]} 13. Ba2 {[%emt 0:01:30]} Bd7 {[%emt 0:23:10]} 14. Be3 {[%emt 0:17:44]} Bc6 {[%emt 0:14:27]} 15. Qd2 {[%emt 0:00:48]} b6 {[%emt 0:03:03]} 16. Bb3 {[%emt 0:05:06]} d5 {[%emt 0:02:44]} 17. exd5 {[%emt 0:01:38]} Nxd5 {[%emt 0:00:16]} 18. Nxd5 {[%emt 0:00:15]} Bxd5 {[%emt 0:00:05]} 19. Bxd5 {[%emt 0:00:46]} Qxd5 {[%emt 0:00:06]} 20. b3 {[%emt 0:02:46]} g5 {[%emt 0:03:56]} 21. Kh1 {[%emt 0:02:08]} f4 {[%emt 0:00:19]} 22. Bg1 {[%emt 0:00:11]} Ng6 {[%emt 0:02:00]} 23. Rae1 {[%emt 0:00:20]} Nh4 {[%emt 0:00:15]} 24. Nf3 {[%emt 0:04:26]} Nf5 {[%emt 0:00:08]} 25. Bf2 {[%emt 0:00:15]} Bd4 {[%emt 0:06:15]} 26. c4 {[%emt 0:03:02]} Qd6 {[%emt 0:02:04]} 27. Nxd4 {[%emt 0:01:18]} cxd4 {[%emt 0:00:05]} 28. Qb2 {[%emt 0:01:39]} Ne3 {[%emt 0:05:18]} 29. Bxe3 {[%emt 0:00:18]} fxe3 {[%emt 0:00:04]} 30. Qe2 {[%emt 0:00:39]} Qg3 {[%emt 0:03:02]} 31. Kg1 {[%emt 0:01:17]} a5 {[%emt 0:03:15]} 32. Rxf8 {[%emt 0:00:52]} Rxf8 {[%emt 0:00:06]} 33. Rf1 {[%emt 0:00:01]} Kg7 {[%emt 0:02:26]} 34. Rxf8 {[%emt 0:00:45]} Kxf8 {[%emt 0:00:02]} 35. Qc2 {[%emt 0:03:01]} Qe1+ {[%emt 0:00:21]} 36. Kh2 {[%emt 0:00:00]} Qf2 {[%emt 0:00:06]} 0-1

[Event "POL-chT 2 Liga 2019"]
[Site "Poronin"]
[Date "2019.09.10"]
[Round "4.28"]
[White "Fudalej, Michal"]
[Black "Fraczek, Dariusz"]
[Result "1-0"]
[ECO "C00"]
[WhiteElo "2235"]
[BlackElo "2033"]
[Annotator "NA"]
[PlyCount "77"]
[EventDate "2019.09.07"]
[EventType "team-tourn"]
[EventCountry "POL"]
[SourceTitle "playchess.com"]
[Source "ChessBase"]
[SourceQuality "1"]
[TimeControl "40/5400+30:1800+30"]

1. e4 {[%emt 0:00:00]} e6 {[%emt 0:00:00]} 2. d3 {[%emt 0:00:02]} d5 {[%emt 0:00:15]} 3. Qe2 {[%emt 0:00:06]} Be7 {[%emt 0:02:57]} 4. Nf3 {[%emt 0:00:38]} Nf6 {[%emt 0:00:21]} 5. g3 {[%emt 0:00:45]} O-O {[%emt 0:03:14]} 6. Bg2 {[%emt 0:01:05]} c5 {[%emt 0:01:48]} 7. O-O {[%emt 0:01:24]} Nc6 {[%emt 0:00:30]} 8. e5 {[%emt 0:00:25]} Nd7 {[%emt 0:00:22]} 9. c4 {[%emt 0:00:46]} d4 {[%emt 0:11:11]} 10. h4 {[%emt 0:01:18]} Rb8 {[%emt 0:00:34]} 11. Bf4 {[%emt 0:01:23]} b5 {[%emt 0:11:41]} 12. cxb5 {[%emt 0:02:28]} Rxb5 {[%emt 0:04:55]} 13. Na3 {[%emt 0:00:32]} Rb8 {[%emt 0:00:55]} 14. Rfc1 {[%emt 0:06:01]} Nb4 {[%emt 0:08:41]} 15. Ng5 {[%emt 0:11:10]} Ba6 {[%emt 0:13:55]} 16. Be4 {[%emt 0:05:07]} h6 {[%emt 0:01:38]} 17. Nh7 {[%emt 0:17:40]} Re8 {[%emt 0:01:16]} 18. Nf6+ {[%emt 0:15:22]} gxf6 {[%emt 0:02:29]} 19. Qg4+ {[%emt 0:03:36]} Kh8 {[%emt 0:00:23]} 20. Bxh6 {[%emt 0:00:29]} Rg8 {[%emt 0:04:51]} 21. Qh5 {[%emt 0:00:20]} Rg6 {[%emt 0:01:17]} 22. Bf4+ {[%emt 0:06:35]} Kg7 {[%emt 0:08:29]} 23. Bxg6 {[%emt 0:00:11]} Qh8 {[%emt 0:01:15]} 24. exf6+ {[%emt 0:22:08]} Nxf6 {[%emt 0:00:32]} 25. Qe2 {[%emt 0:01:08]} Rc8 {[%emt 0:07:50]} 26. Be4 {[%emt 0:01:09]} Nxe4 {[%emt 0:00:09]} 27. Qxe4 {[%emt 0:00:05]} Nxd3 {[%emt 0:04:13]} 28. Rd1 {[%emt 0:01:11]} Nxf4 {[%emt 0:02:09]} 29. Qxf4 {[%emt 0:00:14]} Qh5 {[%emt 0:00:33]} 30. Rac1 {[%emt 0:00:27]} Qd5 {[%emt 0:00:35]} 31. f3 {[%emt 0:00:56]} Bf6 {[%emt 0:01:16]} 32. b3 {[%emt 0:00:22]} Be2 {[%emt 0:01:53]} 33. Rd2 {[%emt 0:00:44]} Qxf3 {[%emt 0:01:14]} 34. Qxf3 {[%emt 0:00:19]} Bxf3 {[%emt 0:00:03]} 35. Rf1 {[%emt 0:00:22]} Bh5 {[%emt 0:00:54]} 36. Rdf2 {[%emt 0:00:10]} d3 {[%emt 0:01:04]} 37. Rxf6 {[%emt 0:00:13]} d2 {[%emt 0:00:02]} 38. g4 {[%emt 0:00:04]} d1=Q {[%emt 0:01:29]} 39. Rxd1 {[%emt 0:00:15]} 1-0

[Event "POL-chT 2 Liga 2019"]
[Site "Poronin"]
[Date "2019.09.10"]
[Round "4.29"]
[White "Grochowski, Kosma"]
[Black "Kolasinski, Krzysztof"]
[Result "0-1"]
[ECO "B30"]
[WhiteElo "1903"]
[BlackElo "2104"]
[Annotator "NA"]
[PlyCount "78"]
[EventDate "2019.09.07"]
[EventType "team-tourn"]
[EventCountry "POL"]
[SourceTitle "playchess.com"]
[Source "ChessBase"]
[SourceQuality "1"]
[TimeControl "40/5400+30:1800+30"]

1. e4 {[%emt 0:00:00]} c5 {[%emt 0:00:00]} 2. Nf3 {[%emt 0:00:00]} Nc6 {[%emt 0:00:11]} 3. Bb5 {[%emt 0:00:12]} Nf6 {[%emt 0:00:17]} 4. e5 {[%emt 0:00:19]} Nd5 {[%emt 0:00:06]} 5. Nc3 {[%emt 0:00:20]} Nc7 {[%emt 0:00:06]} 6. Bxc6 {[%emt 0:00:10]} dxc6 {[%emt 0:00:05]} 7. h3 {[%emt 0:02:31]} Bf5 {[%emt 0:00:22]} 8. O-O {[%emt 0:03:56]} h6 {[%emt 0:00:10]} 9. Re1 {[%emt 0:02:04]} Qd7 {[%emt 0:00:55]} 10. Ne4 {[%emt 0:01:24]} Bxe4 {[%emt 0:07:56]} 11. Rxe4 {[%emt 0:00:10]} O-O-O {[%emt 0:00:24]} 12. e6 {[%emt 0:15:30]} Nxe6 {[%emt 0:03:45]} 13. Ne5 {[%emt 0:04:38]} Qd5 {[%emt 0:00:37]} 14. d3 {[%emt 0:03:07]} Qxe4 {[%emt 0:29:31]} 15. Nxf7 {[%emt 0:00:33]} Qf5 {[%emt 0:00:45]} 16. Nxh8 {[%emt 0:01:00]} g5 {[%emt 0:01:25]} 17. Qg4 {[%emt 0:43:26]} Qxg4 {[%emt 0:26:02]} 18. hxg4 {[%emt 0:00:01]} Bg7 {[%emt 0:00:18]} 19. Ng6 {[%emt 0:00:02]} Bf6 {[%emt 0:00:19]} 20. f4 {[%emt 0:00:01]} Nd4 {[%emt 0:01:10]} 21. Bd2 {[%emt 0:07:25]} Nxc2 {[%emt 0:02:00]} 22. Rc1 {[%emt 0:01:08]} Nb4 {[%emt 0:01:12]} 23. Bxb4 {[%emt 0:01:36]} cxb4 {[%emt 0:00:05]} 24. Rd1 {[%emt 0:02:45]} gxf4 {[%emt 0:08:19]} 25. Kf2 {[%emt 0:00:50]} Rg8 {[%emt 0:01:08]} 26. Nxf4 {[%emt 0:00:10]} Rxg4 {[%emt 0:00:03]} 27. Kf3 {[%emt 0:00:20]} Rg5 {[%emt 0:01:04]} 28. Rh1 {[%emt 0:03:29]} Ra5 {[%emt 0:00:41]} 29. Rxh6 {[%emt 0:04:10]} Rxa2 {[%emt 0:00:21]} 30. g4 {[%emt 0:00:37]} Rxb2 {[%emt 0:01:03]} 31. Ne6 {[%emt 0:00:59]} Kd7 {[%emt 0:05:00]} 32. Nc5+ {[%emt 0:00:18]} Ke8 {[%emt 0:01:09]} 33. Nxb7 {[%emt 0:02:29]} Rd2 {[%emt 0:00:17]} 34. Nc5 {[%emt 0:00:41]} b3 {[%emt 0:00:41]} 35. Rh1 {[%emt 0:00:30]} b2 {[%emt 0:03:24]} 36. Ke4 {[%emt 0:00:37]} Rc2 {[%emt 0:00:44]} 37. Nb3 {[%emt 0:00:17]} Rc3 {[%emt 0:01:43]} 38. Nd2 {[%emt 0:00:41]} Rc1 {[%emt 0:00:03]} 39. Rh5 {[%emt 0:00:18]} Rd1 {[%emt 0:01:05]} 0-1

[Event "POL-chT 2 Liga 2019"]
[Site "Poronin"]
[Date "2019.09.10"]
[Round "4.30"]
[White "Dmochowska, Agnieszka"]
[Black "Fraczek, Weronika"]
[Result "0-1"]
[ECO "C50"]
[WhiteElo "2110"]
[BlackElo "1875"]
[Annotator "NA"]
[PlyCount "62"]
[EventDate "2019.09.07"]
[EventType "team-tourn"]
[EventCountry "POL"]
[SourceTitle "playchess.com"]
[Source "ChessBase"]
[SourceQuality "1"]
[TimeControl "40/5400+30:1800+30"]

1. e4 {[%emt 0:00:00]} e5 {[%emt 0:00:00]} 2. Bc4 {[%emt 0:00:00]} Nc6 {[%emt 0:01:13]} 3. Nf3 {[%emt 0:00:00]} Bc5 {[%emt 0:00:26]} 4. d3 {[%emt 0:01:36]} Nf6 {[%emt 0:01:20]} 5. O-O {[%emt 0:00:19]} d6 {[%emt 0:01:13]} 6. c3 {[%emt 0:00:35]} Bg4 {[%emt 0:05:44]} 7. Nbd2 {[%emt 0:01:38]} a6 {[%emt 0:01:32]} 8. h3 {[%emt 0:09:49]} Bh5 {[%emt 0:01:44]} 9. Re1 {[%emt 0:01:50]} h6 {[%emt 0:04:42]} 10. Nf1 {[%emt 0:03:13]} g5 {[%emt 0:02:51]} 11. Ng3 {[%emt 0:06:20]} Bg6 {[%emt 0:02:49]} 12. d4 {[%emt 0:06:28]} Ba7 {[%emt 0:04:39]} 13. Bd5 {[%emt 0:07:35]} exd4 {[%emt 0:17:53]} 14. Bxc6+ {[%emt 0:18:01]} bxc6 {[%emt 0:00:11]} 15. e5 {[%emt 0:00:43]} dxe5 {[%emt 0:04:48]} 16. Nxe5 {[%emt 0:02:13]} O-O {[%emt 0:00:32]} 17. Nxc6 {[%emt 0:01:22]} Qd6 {[%emt 0:00:40]} 18. Ne7+ {[%emt 0:00:46]} Kh7 {[%emt 0:02:46]} 19. Ngf5 {[%emt 0:02:16]} Qd7 {[%emt 0:06:22]} 20. Qf3 {[%emt 0:11:53]} Ng8 {[%emt 0:10:51]} 21. h4 {[%emt 0:06:55]} Nxe7 {[%emt 0:07:27]} 22. Nxe7 {[%emt 0:01:01]} Rae8 {[%emt 0:02:25]} 23. h5 {[%emt 0:05:02]} Rxe7 {[%emt 0:05:06]} 24. hxg6+ {[%emt 0:02:40]} fxg6 {[%emt 0:00:13]} 25. Rxe7+ {[%emt 0:03:12]} Qxe7 {[%emt 0:00:06]} 26. Qb7 {[%emt 0:01:52]} Qe1+ {[%emt 0:02:45]} 27. Kh2 {[%emt 0:00:05]} Bb6 {[%emt 0:02:09]} 28. cxd4 {[%emt 0:01:56]} Qxf2 {[%emt 0:01:59]} 29. Qe4 {[%emt 0:04:07]} Bxd4 {[%emt 0:02:17]} 30. Bd2 {[%emt 0:00:53]} Qxd2 {[%emt 0:00:19]} 31. Qe7+ {[%emt 0:00:08]} Bg7 {[%emt 0:00:10]} 0-1